bitfinex-derivatives/quotes_BTCF0:USTF0_20250309
["timestamp","ask_amount","ask_price","bid_price","bid_amount"]
[1741559349548,0.36072954,81369.0,81366.0,0.24434432]
[1741559349740,0.188,81368.0,81367.0,0.1229097]
[1741559349948,0.36098427,81376.0,81367.0,0.78713186]
[1741559350250,0.3608,81368.0,81366.0,0.0090609]
[1741559350460,0.188,81367.0,81360.0,0.0281608]
[1741559350646,0.188,81367.0,81354.0,0.0614642]
[1741559350848,0.00018427,81376.0,81375.0,0.1228976]
[1741559351042,0.00018427,81376.0,81371.0,0.10112]
[1741559351250,0.00018427,81376.0,81368.0,0.0614535]
[1741559351448,0.00018427,81376.0,81375.0,0.1228976]
[1741559352154,0.00018427,81376.0,81372.0,0.1229015]
[1741559352348,0.00018427,81376.0,81375.0,0.1228976]
[1741559352744,0.54952,81381.0,81373.0,0.2373503]
[1741559352745,0.29500668,81381.0,81373.0,0.2373503]
[1741559352946,0.3608,81404.0,81390.0,0.06189716]
[1741559353144,0.3608,81404.0,81391.0,0.6876]
[1741559353447,0.18342851,81403.0,81391.0,0.6876]
[1741559353652,0.00512851,81402.0,81391.0,0.6876]
[1741559353858,0.00512851,81402.0,81399.0,0.1228606]
[1741559354154,0.1783,81403.0,81400.0,0.47144]
[1741559354357,0.1783,81401.0,81400.0,0.47144]
[1741559354947,0.1783,81401.0,81400.0,0.10164]
[1741559355148,0.1783,81401.0,81391.0,0.21628]
[1741559355353,0.1885,81400.0,81391.0,0.21628]
[1741559355550,0.1985,81400.0,81391.0,0.21628]
[1741559355755,0.3608,81392.0,81391.0,0.21628]
[1741559355956,0.3608,81395.0,81391.0,0.16436752]
[1741559356148,0.1922,81394.0,81391.0,0.16436752]
[1741559356353,0.1228718,81393.0,81391.0,0.16436752]
[1741559356646,0.1922,81394.0,81391.0,0.16436752]
[1741559356862,0.1922,81394.0,81391.0,0.15530216]
[1741559356863,0.315072,81392.0,81391.0,0.15530216]
[1741559357053,0.1228765,81389.0,81388.0,0.00018427]
[1741559357360,0.2279,81389.0,81369.0,0.0283582]
[1741559357551,0.3608,81370.0,81364.0,0.1229132]
[1741559357757,0.3608,81386.0,81360.0,0.22554173]
[1741559357758,0.1922,81369.0,81360.0,0.22554173]
[1741559357956,0.3608,81362.0,81360.0,0.22554173]
[1741559358259,0.1922,81361.0,81360.0,0.25376434]
[1741559358456,0.1922,81361.0,81360.0,0.22554173]
[1741559358857,0.553,81361.0,81360.0,0.00926173]
[1741559359063,0.553,81361.0,81345.0,0.1849]
[1741559359357,0.65428,81361.0,81346.0,0.1229402]
[1741559359564,0.65428,81361.0,81348.0,0.39903659]
[1741559360059,0.65428,81361.0,81348.0,0.0093106]
[1741559360264,0.3608,81351.0,81343.0,0.24407607]
[1741559360460,0.3653,81350.0,81343.0,0.24407607]
[1741559360761,0.3608,81344.0,81343.0,0.0371712]
[1741559361062,0.46176,81344.0,81335.0,0.00937614]
[1741559361273,0.3608,81336.0,81321.0,0.00911971]
[1741559361466,0.3608,81324.0,81310.0,0.63191192]
[1741559361764,0.2179,81335.0,81314.0,0.3608]
[1741559361962,0.3608,81357.0,81333.0,0.06148]
[1741559362257,0.3808,81357.0,81334.0,0.21632]
[1741559362459,0.10132,81356.0,81336.0,0.3608]
[1741559362659,0.10132,81356.0,81335.0,0.3643]
[1741559362859,0.10132,81356.0,81338.0,0.1229529]
[1741559363058,0.3608,81357.0,81335.0,0.3643]
[1741559363261,0.0001844,81355.0,81345.0,0.3608]
[1741559363959,0.0001844,81355.0,81339.0,0.0001844]
[1741559364159,0.1229505,81340.0,81339.0,0.0001844]
[1741559364365,0.33914,81340.0,81321.0,0.3608]
[1741559364662,0.33914,81340.0,81317.0,0.21636]
[1741559364663,0.12124,81340.0,81322.0,0.3608]
[1741559364860,0.12124,81340.0,81324.0,0.1229741]
[1741559365054,0.12124,81340.0,81322.0,0.3608]
[1741559365256,0.12124,81340.0,81331.0,0.1229635]
[1741559365457,0.0001844,81339.0,81326.0,0.1229711]
[1741559365959,0.0001844,81339.0,81337.0,0.122954]
[1741559366259,0.0001844,81339.0,81326.0,0.0614855]
[1741559366462,0.0001844,81339.0,81337.0,0.3608]
[1741559366658,0.0001844,81339.0,81338.0,0.1229536]
[1741559366959,0.0001844,81339.0,81327.0,0.3811]
[1741559367160,0.3608,81337.0,81317.0,0.21636]
[1741559367365,0.3608,81337.0,81317.0,0.31768]
[1741559367366,0.3708,81337.0,81317.0,0.31768]
[1741559367562,0.1835,81336.0,81317.0,0.21636]
[1741559367863,0.1835,81336.0,81312.0,0.1934]
[1741559367864,0.3608,81325.0,81312.0,0.1934]
[1741559368056,0.29422,81324.0,81311.0,0.29957051]
[1741559368451,0.3608,81323.0,81311.0,0.29957051]
[1741559368657,0.3708,81323.0,81309.0,0.00940493]
[1741559368964,0.1929,81322.0,81321.0,0.1229793]
[1741559369272,0.23527974,81350.0,81328.0,0.0614843]
[1741559369273,0.10148,81332.0,81328.0,0.0614843]
[1741559369457,0.1929,81330.0,81329.0,0.1229672]
[1741559370157,0.1929,81330.0,81320.0,0.36144]
[1741559370361,0.10132,81329.0,81328.0,0.1229687]
[1741559370963,0.10132,81329.0,81320.0,0.3608]
[1741559371158,0.1832,81328.0,81308.0,0.1813]
[1741559371361,0.3261693,81328.0,81310.0,0.1229944]
[1741559371563,0.3077707,81327.0,81310.0,0.1229944]
[1741559371757,0.3608,81323.0,81307.0,0.0002]
[1741559372062,0.3608,81315.0,81307.0,0.0002]
[1741559372262,0.10132,81314.0,81300.0,0.10908762]
[1741559372467,0.0001844,81319.0,81318.0,0.1229838]
[1741559372763,0.0001844,81319.0,81315.0,0.3608]
[1741559372968,0.1016,81318.0,81300.0,0.1370932]
[1741559373264,0.1016,81318.0,81303.0,0.3608]
[1741559373571,0.1016,81318.0,81308.0,0.23527974]
[1741559373862,0.3608,81312.0,81300.0,0.1370932]
[1741559374066,0.1014,81311.0,81310.0,0.1229959]
[1741559374363,0.0001844,81319.0,81318.0,0.06175431]
[1741559374563,0.0001844,81319.0,81318.0,0.10156]
[1741559374758,0.0001844,81319.0,81318.0,0.2245438]
[1741559375453,0.0001844,81319.0,81318.0,0.10156]
[1741559375659,0.3609844,81319.0,81300.0,0.1370932]
[1741559375965,0.1229997,81308.0,81300.0,0.1370932]
[1741559376153,0.28996,81307.0,81303.0,0.3608]
[1741559376356,0.1230042,81305.0,81300.0,0.10908762]
[1741559376669,0.3608,81308.0,81300.0,0.21072762]
[1741559376860,0.3608,81308.0,81301.0,0.3925]
[1741559377260,0.3608,81308.0,81300.0,0.10908762]
[1741559377459,0.1836,81307.0,81300.0,0.10908762]
[1741559377765,0.3177332,81308.0,81301.0,0.1919]
[1741559377960,0.1836,81317.0,81307.0,0.3608]
[1741559378159,0.1836,81317.0,81308.0,0.1919]
[1741559378360,0.1836,81317.0,81309.0,0.10164]
[1741559378771,0.1836,81317.0,81307.0,0.3608]
[1741559378964,0.3608,81309.0,81302.0,0.21648]
[1741559379268,0.376,81308.0,81302.0,0.57728]
[1741559379463,0.376,81308.0,81303.0,0.1919]
[1741559379664,0.1924,81308.0,81303.0,0.1919]
[1741559380063,0.1837,81307.0,81303.0,0.1919]
[1741559380264,0.1837,81307.0,81303.0,0.13067051]
[1741559380466,0.1971,81306.0,81304.0,0.1802]
[1741559380668,0.1971,81306.0,81303.0,0.13067051]
[1741559380865,0.1837,81305.0,81302.0,0.21648]
[1741559381065,0.1937,81305.0,81300.0,0.1]
[1741559381365,0.1971,81304.0,81300.0,0.1]
[1741559381764,0.1837,81303.0,81300.0,0.1]
[1741559382271,0.1230095,81301.0,81300.0,0.1]
[1741559382568,0.1230095,81301.0,81286.0,0.21652]
[1741559382569,0.1231004,81241.0,81240.0,0.43746486]
[1741559382770,0.3708,81241.0,81221.0,0.54699489]
[1741559382966,0.3608,81222.0,81221.0,0.17787489]
[1741559383269,0.3608,81235.0,81221.0,0.3121454]
[1741559383468,0.7216,81223.0,81222.0,0.36912]
[1741559383667,0.67853304,81223.0,81222.0,0.55088833]
[1741559383864,0.31773304,81223.0,81222.0,0.74638833]
[1741559384061,0.3608,81236.0,81230.0,0.18176833]
[1741559384368,0.21656,81287.0,81223.0,0.36912]
[1741559384369,0.3608,81257.0,81235.0,0.18176833]
[1741559384673,0.3608,81257.0,81249.0,0.18176833]
[1741559384674,0.46628,81256.0,81249.0,0.18176833]
[1741559384878,0.46628,81256.0,81225.0,0.3608]
[1741559384879,0.10556,81269.0,81246.0,0.7760311]
[1741559385167,0.1230022,81306.0,81268.0,0.3608]
[1741559385366,0.05,81306.0,81305.0,0.3608]
[1741559385568,0.1948,81307.0,81305.0,0.3608]
[1741559385772,0.1948,81307.0,81306.0,0.36912]
[1741559385961,0.00018449,81314.0,81306.0,0.55088833]
[1741559386162,0.10572,81330.0,81313.0,0.3608]
[1741559386360,0.3608,81314.0,81281.0,0.3608]
[1741559386578,0.3608,81314.0,81267.0,0.3608]
[1741559386579,0.4223141,81289.0,81267.0,0.3608]
[1741559386760,0.10588,81288.0,81277.0,0.18176833]
[1741559386966,0.3554,81312.0,81287.0,0.3608]
[1741559387168,0.1229989,81308.0,81298.0,0.3608]
[1741559387377,0.02,81308.0,81298.0,0.3608]
[1741559387562,0.02,81308.0,81288.0,1.02568833]
[1741559387563,0.02,81308.0,81295.0,0.00018449]
[1741559387759,0.02,81308.0,81295.0,0.18195282]
[1741559387961,0.02,81308.0,81296.0,0.73812]
[1741559388166,0.1886,81307.0,81297.0,0.55088833]
[1741559388366,0.1886,81307.0,81298.0,0.10556]
[1741559388567,0.1886,81307.0,81306.0,0.3608]
[1741559389068,0.1886,81307.0,81298.0,0.10556]
[1741559389272,0.1879,81306.0,81303.0,0.18176833]
[1741559389476,0.1879,81306.0,81298.0,0.10556]
[1741559389477,0.1886,81307.0,81306.0,0.66869051]
[1741559389669,0.24407123,81311.0,81306.0,0.96837929]
[1741559389865,0.00012258,81310.0,81307.0,0.76312421]
[1741559390061,0.20112685,81311.0,81310.0,0.30476423]
[1741559390269,0.20112685,81311.0,81310.0,0.19937254]
[1741559390471,0.27771587,81319.0,81310.0,0.94489254]
[1741559390674,0.10532,81342.0,81318.0,0.54256833]
[1741559390973,0.0614747,81341.0,81328.0,0.3608]
[1741559391171,0.369,81341.0,81329.0,0.71572421]
[1741559391367,0.00018449,81338.0,81330.0,0.01760421]
[1741559391577,0.00018449,81338.0,81330.0,0.38672421]
[1741559391771,0.39746776,81331.0,81330.0,0.94489254]
[1741559391973,0.39746776,81331.0,81330.0,1.04728969]
[1741559392475,0.35439916,81331.0,81330.0,1.01473949]
[1741559392678,0.31133056,81331.0,81330.0,1.01473949]
[1741559392866,0.26826196,81331.0,81330.0,1.01473949]
[1741559393063,0.1839,81349.0,81347.0,0.18176833]
[1741559393272,0.1839,81349.0,81348.0,0.51796898]
[1741559393469,0.1839,81349.0,81348.0,0.38964762]
[1741559393669,0.25022947,81359.0,81348.0,0.87876898]
[1741559393870,0.1839,81358.0,81352.0,0.18176833]
[1741559394079,0.1939,81358.0,81353.0,0.26224065]
[1741559394267,0.1939,81358.0,81354.0,0.02867929]
[1741559394579,0.1939,81358.0,81355.0,0.02904382]
[1741559394882,0.1939,81358.0,81355.0,0.12832136]
[1741559395075,0.3168248,81358.0,81353.0,0.10524]
[1741559395280,0.3217257,81357.0,81353.0,0.10524]
[1741559395575,0.1988,81357.0,81353.0,0.04401051]
[1741559395780,0.1831,81356.0,81354.0,0.1813]
[1741559396183,0.1831,81356.0,81354.0,0.36306833]
[1741559396373,0.1988,81357.0,81355.0,0.18176833]
[1741559396679,0.1988,81357.0,81356.0,0.36306833]
[1741559397568,0.1831,81362.0,81356.0,0.36306833]
[1741559397773,0.00018449,81363.0,81361.0,0.54256833]
[1741559398081,0.00018449,81363.0,81362.0,0.61960813]
[1741559398276,0.00018449,81363.0,81362.0,0.8038999]
[1741559398474,0.00018449,81363.0,81362.0,0.74267041]
[1741559398784,0.00018449,81363.0,81362.0,0.61975311]
[1741559399173,0.10029228,81365.0,81364.0,0.30468263]
[1741559399480,0.3059914,81380.0,81364.0,0.21105442]
[1741559399677,0.3059914,81380.0,81362.0,0.40893051]
[1741559399678,0.1971,81379.0,81372.0,0.18176833]
[1741559399872,0.1971,81379.0,81372.0,0.50252833]
[1741559400474,0.21471959,81381.0,81372.0,0.50252833]
[1741559400475,0.21490396,81381.0,81372.0,0.62543053]
[1741559400675,0.21490396,81381.0,81372.0,0.39824833]
[1741559400877,0.1971,81380.0,81372.0,0.75904833]
[1741559401278,0.1229128,81365.0,81349.0,0.03531977]
[1741559401478,0.1979,81372.0,81355.0,0.3608]
[1741559401680,0.1979,81372.0,81360.0,0.4152311]
[1741559401884,0.1979,81372.0,81371.0,0.12053884]
[1741559402095,0.00018437,81381.0,81371.0,0.69777884]
[1741559402387,0.00018437,81381.0,81380.0,0.60422894]
[1741559402691,0.00018437,81381.0,81380.0,0.58617884]
[1741559403189,0.00018437,81381.0,81372.0,0.1888]
[1741559403784,0.38668437,81381.0,81375.0,0.12053884]
[1741559403997,0.38668437,81381.0,81380.0,0.12053884]
[1741559404600,0.38668437,81381.0,81373.0,0.1816]
[1741559404892,0.38668437,81381.0,81380.0,0.05930935]
[1741559405096,0.00018437,81381.0,81380.0,0.18219945]
[1741559405498,0.1228901,81380.0,81379.0,0.2011]
[1741559405695,0.3869,81380.0,81378.0,0.3608]
[1741559406287,0.3869,81380.0,81373.0,0.105]
[1741559406591,0.3869,81380.0,81375.0,0.05930935]
[1741559406898,0.3869,81380.0,81374.0,0.3608]
[1741559406899,0.3869,81380.0,81377.0,0.05930935]
[1741559407095,0.3869,81380.0,81374.0,0.3608]
[1741559407300,0.3869,81380.0,81379.0,0.05930935]
[1741559407498,0.9077,81380.0,81354.0,0.3608]
[1741559407691,0.4222526,81370.0,81345.0,0.05930935]
[1741559407895,0.3608,81357.0,81345.0,0.05930935]
[1741559408098,0.3885,81356.0,81347.0,0.05930935]
[1741559408298,0.3885,81356.0,81346.0,0.05930935]
[1741559408493,0.3985,81356.0,81355.0,0.18223725]
[1741559408695,0.00018437,81364.0,81363.0,0.0614571]
[1741559408902,0.00018437,81364.0,81358.0,0.2164]
[1741559409094,0.38868437,81364.0,81358.0,0.2164]
[1741559409292,0.74948437,81364.0,81347.0,0.00018437]
[1741559409496,0.3608,81357.0,81347.0,0.00018437]
[1741559409796,0.3885,81356.0,81347.0,0.00018437]
[1741559410004,0.4837384,81348.0,81347.0,0.00018437]
[1741559410699,0.4837384,81348.0,80661.0,0.15139448]
[1741559410700,0.6935,81348.0,81312.0,0.30021051]
[1741559410898,0.3608,81320.0,81312.0,0.30021051]
[1741559411096,0.1988,81319.0,81312.0,0.35951986]
[1741559411300,0.1229914,81313.0,81310.0,0.2164]
[1741559411500,0.10492,81320.0,81294.0,0.3608]
[1741559411501,0.30416,81312.0,81296.0,0.2164]
[1741559411797,0.10532,81311.0,81303.0,0.00018437]
[1741559412195,0.1988,81310.0,81303.0,0.00018437]
[1741559412795,0.122998,81309.0,81303.0,0.00018437]
[1741559412995,0.1988,81310.0,81303.0,0.00018437]
[1741559413205,0.1988,81308.0,81303.0,0.00018437]
[1741559413601,0.1988,81308.0,81296.0,0.2164]
[1741559413807,0.193,81307.0,81301.0,0.05930935]
[1741559414100,0.123011,81300.0,81299.0,0.05930935]
[1741559414299,0.0615028,81304.0,81299.0,0.05930935]
[1741559414498,0.3927,81303.0,81301.0,0.05930935]
[1741559414798,0.3927,81303.0,81302.0,0.483808]
[1741559414997,0.3927,81303.0,81302.0,0.54311735]
[1741559415199,0.3927,81303.0,81302.0,0.42010935]
[1741559415797,0.00018437,81320.0,81302.0,0.42010935]
[1741559416109,0.1812,81354.0,81319.0,0.05930935]
[1741559416303,0.1997,81353.0,81352.0,0.05930935]
[1741559416500,0.1997,81353.0,81352.0,0.18224175]
[1741559416797,0.1997,81353.0,81348.0,0.18827986]
[1741559417003,0.17893299,81355.0,81348.0,0.18827986]
[1741559417305,0.17893299,81355.0,81354.0,0.3608]
[1741559417504,0.13587387,81355.0,81354.0,0.46636]
[1741559417702,0.13587387,81355.0,81354.0,0.5892894]
[1741559417897,0.09281475,81355.0,81354.0,0.46636]
[1741559418106,0.21574265,81355.0,81354.0,0.3608]
[1741559418310,0.09281475,81355.0,81339.0,0.10556]
[1741559418501,0.3879,81354.0,81338.0,0.46632]
[1741559418703,0.3879,81354.0,81346.0,0.0614707]
[1741559418899,0.3879,81354.0,81347.0,0.46628]
[1741559419305,0.00018449,81360.0,81350.0,0.3608]
[1741559419605,0.00018449,81360.0,81359.0,0.3608]
[1741559419911,0.00018449,81360.0,81350.0,0.7760311]
[1741559420205,0.5608,81393.0,81377.0,0.1228946]
[1741559420399,0.1879,81381.0,81377.0,0.1228946]
[1741559421202,0.1879,81381.0,81377.0,0.2284946]
[1741559421402,0.1879,81381.0,81377.0,0.4664]
[1741559421603,0.189,81380.0,81377.0,0.4664]
[1741559422109,0.1879,81379.0,81377.0,0.4664]
[1741559422303,0.1879,81379.0,81369.0,0.21662438]
[1741559422304,0.1229052,81370.0,81369.0,0.21662438]
[1741559422505,0.10556,81371.0,81369.0,0.00018438]
[1741559422709,0.4034,81370.0,81369.0,0.00018438]
[1741559423011,0.10556,81393.0,81369.0,0.3608]
[1741559423310,0.2024,81385.0,81377.0,0.1228936]
[1741559423505,0.201,81384.0,81378.0,0.4003]
[1741559423908,0.2024,81383.0,81381.0,0.1228871]
[1741559424213,0.2024,81383.0,81382.0,0.1228871]
[1741559424599,0.2024,81383.0,81382.0,0.1839]
[1741559424799,0.2024,81383.0,81378.0,0.2164]
[1741559425004,0.201,81382.0,81378.0,0.2164]
[1741559425508,0.2024,81381.0,81378.0,0.2164]
[1741559425904,0.2012,81380.0,81378.0,0.15517051]
[1741559426099,0.3608,81379.0,81378.0,0.15517051]
[1741559426308,0.1228992,81374.0,81366.0,0.3608]
[1741559426507,0.01,81374.0,81358.0,0.3608]
[1741559426713,0.1229209,81360.0,81344.0,0.5276445]
[1741559427015,0.3608,81347.0,81344.0,0.4047]
[1741559427209,0.2012,81346.0,81345.0,0.1954]
[1741559427416,0.2012,81346.0,81345.0,0.506643]
[1741559427710,0.00018438,81354.0,81350.0,0.0614675]
[1741559427915,0.00018438,81354.0,81351.0,0.2280938]
[1741559428104,0.00018438,81354.0,81351.0,0.2497663]
[1741559428301,0.00018438,81354.0,81353.0,0.1229309]
[1741559428716,0.46592,81367.0,81353.0,0.1229309]
[1741559428717,0.3608,81367.0,81366.0,0.1229112]
[1741559428902,0.3608,81367.0,81366.0,0.38328171]
[1741559429209,0.3608,81418.0,81366.0,2.13561496]
[1741559429409,0.2025,81409.0,81387.0,0.3608]
[1741559429605,0.2025,81399.0,81388.0,0.70804]
[1741559429801,0.3951,81399.0,81388.0,0.7694786]
[1741559430001,0.2025,81399.0,81397.0,0.1228639]
[1741559430210,0.2025,81399.0,81391.0,0.0614361]
[1741559430211,0.2025,81399.0,81398.0,0.1961]
[1741559430422,0.1926,81398.0,81388.0,0.2164]
[1741559430716,0.1228765,81389.0,81388.0,0.2164]
[1741559431111,0.3951,81390.0,81385.0,0.00018438]
[1741559431314,0.1229536,81338.0,81304.0,0.43676934]
[1741559431520,1.09522,81338.0,81304.0,0.43676934]
[1741559431702,0.3608,81314.0,81304.0,0.43676934]
[1741559431902,0.3994,81313.0,81309.0,0.30245744]
[1741559432203,0.1982,81313.0,81309.0,0.30245744]
[1741559432405,0.3608,81310.0,81309.0,0.30245744]
[1741559432605,0.3708,81310.0,81309.0,0.30245744]
[1741559432814,0.10564,81311.0,81309.0,0.30245744]
[1741559433018,0.1982,81310.0,81309.0,0.30245744]
[1741559433710,0.6819959,81310.0,81309.0,0.30245744]
[1741559433912,0.1230035,81305.0,81304.0,0.43676934]
[1741559434308,0.1330035,81305.0,81304.0,0.43676934]
[1741559434518,0.1330035,81305.0,81260.0,0.4152311]
[1741559434519,0.1230352,81284.0,81283.0,0.00064]
[1741559434720,0.47656,81284.0,81267.0,0.1230601]
[1741559434921,0.3929,81283.0,81262.0,0.03509462]
[1741559435219,0.3929,81283.0,81261.0,0.1887]
[1741559435220,0.3608,81277.0,81234.0,0.00918589]
[1741559435412,0.3608,81243.0,81229.0,0.21644]
[1741559435622,0.5902573,81243.0,81229.0,0.21644]
[1741559435811,0.3608,81243.0,81229.0,0.22560928]
[1741559436012,0.00018463,81251.0,81250.0,0.1230867]
[1741559436208,0.2032,81254.0,81243.0,0.389]
[1741559436720,0.3608,81251.0,81242.0,0.54304934]
[1741559436918,0.2032,81250.0,81244.0,0.1230948]
[1741559437213,0.2032,81250.0,81243.0,0.2003]
[1741559437811,0.00132,81253.0,81243.0,0.2003]
[1741559438125,0.3608,81254.0,81244.0,0.1068]
[1741559438512,0.5664,81254.0,81244.0,0.1068]
[1741559438718,0.1231019,81240.0,81239.0,0.00018463]
[1741559439024,0.01,81240.0,81213.0,0.21652]
[1741559439320,0.3608,81233.0,81213.0,0.40702]
[1741559439616,0.1231149,81232.0,81213.0,0.40702]
[1741559439918,0.3608,81233.0,81213.0,0.21652]
[1741559440109,0.3608,81225.0,81204.0,0.00072]
[1741559440309,0.3608,81225.0,81204.0,0.0090281]
[1741559440310,0.0615638,81223.0,81204.0,0.0090281]
[1741559440517,0.3608,81208.0,81200.0,0.1]
[1741559440717,0.483961,81201.0,81200.0,0.1]
[1741559440924,0.3608,81201.0,81200.0,0.1]
[1741559441220,0.1231838,81186.0,81185.0,0.00913133]
[1741559441419,0.5908638,81186.0,81185.0,0.00913133]
[1741559441614,0.3608,81186.0,81171.0,0.0616032]
[1741559441825,0.3608,81186.0,81170.0,0.43676934]
[1741559442016,0.3608,81186.0,81178.0,0.3608]
[1741559442212,0.3608,81186.0,81170.0,0.43676934]
[1741559442620,0.3608,81178.0,81170.0,0.43676934]
[1741559442918,0.3608,81178.0,81150.0,0.00939093]
[1741559442919,0.0616041,81170.0,81141.0,1.4630079]
[1741559443224,0.7216,81150.0,81141.0,1.4630079]
[1741559443415,0.1232961,81112.0,81111.0,0.40521182]
[1741559443614,0.7216,81112.0,81102.0,0.01560647]
[1741559443819,0.3608,81103.0,81102.0,0.01560647]
[1741559444122,0.3608,81103.0,81100.0,0.05437698]
[1741559444312,0.3608,81101.0,81100.0,0.05437698]
[1741559444512,0.3708,81101.0,81100.0,0.05417698]
[1741559444720,0.3708,81101.0,81100.0,0.17749138]
[1741559444920,0.3608,81122.0,81100.0,1.1560884]
[1741559445123,0.3608,81122.0,81119.0,0.1232]
[1741559445313,0.3608,81128.0,81119.0,0.2464855]
[1741559445516,0.3608,81128.0,81119.0,1.48450732]
[1741559445824,0.3608,81138.0,81137.0,0.1232581]
[1741559446125,0.3608,81138.0,81123.0,0.11196]
[1741559446423,0.36220001,81153.0,81137.0,0.40518182]
[1741559446626,0.3608,81166.0,81148.0,0.28198182]
[1741559446824,0.3608,81166.0,81138.0,0.50166]
[1741559446825,0.00018489,81153.0,81149.0,0.3966]
[1741559447027,0.00018489,81153.0,81149.0,0.33537051]
[1741559447332,0.00018489,81153.0,81150.0,0.86256]
[1741559447629,0.20730136,81155.0,81154.0,0.40521412]
[1741559447824,0.16414825,81155.0,81154.0,1.38021412]
[1741559448130,0.3608,81190.0,81168.0,0.1232111]
[1741559448333,0.3608,81175.0,81160.0,0.00906584]
[1741559448625,0.11296,81174.0,81154.0,0.00064]
[1741559448829,0.1232308,81155.0,81154.0,0.73936]
[1741559449027,0.0616105,81162.0,81154.0,0.73936]
[1741559449028,0.1126,81165.0,81156.0,0.00018489]
[1741559449229,0.1232285,81157.0,81156.0,0.00018489]
[1741559450021,0.1332285,81157.0,81156.0,0.00018489]
[1741559450326,0.01,81157.0,81145.0,0.73936]
[1741559450528,0.2,81156.0,81145.0,0.73936]
[1741559450723,0.11212,81155.0,81150.0,0.1232372]
[1741559451025,0.11208,81160.0,81154.0,0.28198182]
[1741559451224,0.1998,81179.0,81161.0,0.123221]
[1741559451429,0.00018489,81165.0,81164.0,0.1232171]
[1741559451822,0.112,81178.0,81164.0,1.13330182]
[1741559452018,0.11196,81185.0,81165.0,0.73936]
[1741559452226,0.1231884,81183.0,81176.0,0.28198182]
[1741559452421,0.12319,81182.0,81177.0,0.2013]
[1741559452628,0.12319,81182.0,81177.0,1.08692005]
[1741559452629,0.10397633,81182.0,81177.0,1.08692005]
[1741559452835,0.10397633,81182.0,81180.0,0.34755615]
[1741559453034,0.10397633,81182.0,81181.0,1.19871465]
[1741559453229,0.11188,81218.0,81191.0,0.1231762]
[1741559453423,0.00140001,81212.0,81191.0,0.33624335]
[1741559453623,0.13037938,81192.0,81191.0,1.19877955]
[1741559453930,0.11176,81225.0,81198.0,0.0615823]
[1741559454126,0.1833228,81225.0,81213.0,0.22436335]
[1741559454330,0.6036875,81224.0,81209.0,0.11172]
[1741559454525,0.6136875,81224.0,81211.0,0.00018477]
[1741559454722,0.1231285,81223.0,81211.0,0.00018477]
[1741559454932,0.01,81223.0,81212.0,0.73936]
[1741559455229,0.01,81223.0,81211.0,0.00018477]
[1741559455230,0.1231443,81212.0,81211.0,0.00018477]
[1741559455430,0.1116,81217.0,81211.0,0.73954477]
[1741559455624,0.1231443,81212.0,81211.0,0.73954477]
[1741559456030,0.1331443,81212.0,81211.0,0.73954477]
[1741559456231,0.1331443,81212.0,81211.0,0.67831528]
[1741559456623,0.11124,81219.0,81211.0,0.67831528]
[1741559456932,0.11124,81221.0,81209.0,0.1112]
[1741559457129,0.11124,81221.0,81201.0,0.67895528]
[1741559457130,0.1231451,81212.0,81201.0,0.67895528]
[1741559457327,0.2003,81220.0,81207.0,0.00018477]
[1741559457523,0.11124,81221.0,81207.0,0.00018477]
[1741559457723,0.11104,81230.0,81214.0,0.1231399]
[1741559457934,0.2179,81243.0,81211.0,0.3608]
[1741559458137,0.1231106,81235.0,81213.0,0.2037]
[1741559458432,0.31122,81242.0,81214.0,0.67831528]
[1741559458736,0.31122,81242.0,81224.0,0.123126]
[1741559459035,0.31122,81242.0,81225.0,0.3276]
[1741559459236,0.31122,81242.0,81226.0,0.72784579]
[1741559459237,0.1231086,81236.0,81226.0,0.72784579]
[1741559459429,0.11092,81242.0,81226.0,0.72784579]
[1741559459630,0.11092,81242.0,81226.0,0.94051074]
[1741559459943,0.3608,81254.0,81226.0,0.94051074]
[1741559460132,0.11044,81250.0,81237.0,0.3608]
[1741559460336,0.11044,81250.0,81238.0,0.66675074]
[1741559460533,0.11044,81250.0,81239.0,0.46915074]
[1741559460838,0.1231034,81239.0,81238.0,0.46915074]
[1741559461028,0.2279,81239.0,81230.0,0.00018465]
[1741559461233,0.2279,81239.0,81209.0,0.37015641]
[1741559461234,0.3608,81231.0,81209.0,0.00935641]
[1741559461437,0.3608,81231.0,81210.0,0.46915074]
[1741559461438,0.1231458,81211.0,81210.0,0.46915074]
[1741559461739,0.11028,81211.0,81210.0,0.46915074]
[1741559462126,0.0615787,81204.0,81194.0,0.03210131]
[1741559462330,0.1231686,81196.0,81195.0,0.21969759]
[1741559462532,0.48968,81203.0,81195.0,0.68888141]
[1741559462735,0.2179,81223.0,81202.0,0.3608]
[1741559462934,0.3608,81212.0,81203.0,0.21973056]
[1741559463133,0.1231549,81205.0,81204.0,0.46915074]
[1741559463339,0.0615804,81202.0,81197.0,0.46915074]
[1741559463527,0.123164,81199.0,81198.0,0.01886476]
[1741559463727,0.11016,81202.0,81201.0,0.123161]
[1741559463928,0.00018465,81207.0,81201.0,0.04923045]
[1741559464139,0.00018465,81207.0,81206.0,0.1231534]
[1741559464341,0.00018465,81207.0,81206.0,0.21033839]
[1741559464537,0.11,81225.0,81206.0,0.55633573]
[1741559464835,0.11,81225.0,81203.0,0.11004]
[1741559464836,0.3608,81222.0,81208.0,0.46915074]
[1741559465037,0.3608,81222.0,81209.0,0.08718499]
[1741559465339,0.1231458,81211.0,81210.0,0.06912491]
[1741559465734,0.2179,81211.0,81202.0,0.00018465]
[1741559465940,0.1231701,81195.0,81194.0,0.01892713]
[1741559466142,0.6038901,81195.0,81194.0,0.01892713]
[1741559466436,0.6038901,81195.0,81172.0,0.123204]
[1741559466437,0.123205,81172.0,81171.0,0.2168]
[1741559466642,0.3608,81172.0,81154.0,0.01895434]
[1741559466834,0.3608,81172.0,81153.0,0.2168]
[1741559466835,0.10972,81180.0,81164.0,0.46915074]
[1741559467028,0.00018477,81176.0,81175.0,0.1232004]
[1741559467228,0.2179,81192.0,81173.0,0.10984]
[1741559467445,0.3608,81195.0,81194.0,0.1231716]
[1741559467636,0.10976,81211.0,81198.0,0.1231643]
[1741559467937,0.2179,81218.0,81200.0,0.4152311]
[1741559468141,0.3608,81215.0,81201.0,0.10984]
[1741559468443,0.3608,81215.0,81203.0,0.46915074]